[Event "9th Bangabandhu Blitz Women 2021"]
[Site "Dhaka"]
[Date "2021.04.03"]
[Round "9.3"]
[White "Israt, Jahan Diba"]
[Black "Jannatul, Ferdous"]
[Result "1/2-1/2"]
[ECO "B00"]
[WhiteElo "1675"]
[BlackElo "1710"]
[Annotator "NA"]
[PlyCount "124"]
[EventDate "2021.04.02"]
[EventType "swiss"]
[EventCountry "BAN"]
[SourceTitle "playchess.com"]
[Source "ChessBase"]
[SourceQuality "1"]
[TimeControl "180+2"]

1. e4 {[%emt 0:03:02]} b6 {[%emt 0:03:02]} 2. d4 Bb7 {[%emt 0:00:02]} 3. Nc3 {[%emt 0:00:04]} g6 {[%emt 0:00:02]} 4. Nf3 {[%emt 0:00:02]} Bg7 5. Bd3 d6 {[%emt 0:00:04]} 6. Be3 {[%emt 0:00:04]} Nd7 {[%emt 0:00:02]} 7. O-O {[%emt 0:00:02]} c5 {[%emt 0:00:02]} 8. dxc5 {[%emt 0:00:02]} dxc5 {[%emt 0:00:02]} 9. Qd2 {[%emt 0:00:02]} Ngf6 {[%emt 0:00:02]} 10. Rad1 {[%emt 0:00:02]} O-O {[%emt 0:00:02]} 11. Bh6 {[%emt 0:00:02]} Re8 {[%emt 0:00:02]} 12. h3 {[%emt 0:00:02]} e5 {[%emt 0:00:02]} 13. Rfe1 Qe7 {[%emt 0:00:02]} 14. Bc4 {[%emt 0:00:04]} Rad8 {[%emt 0:00:02]} 15. Qc1 {[%emt 0:00:02]} Nb8 {[%emt 0:00:02]} 16. Bxg7 {[%emt 0:00:02]} Kxg7 17. Rd2 {[%emt 0:00:02]} Rxd2 {[%emt 0:00:04]} 18. Qxd2 {[%emt 0:00:02]} Rd8 19. Qe2 {[%emt 0:00:02]} Nc6 {[%emt 0:00:04]} 20. Ng5 {[%emt 0:00:02]} Rf8 {[%emt 0:00:02]} 21. Nd5 {[%emt 0:00:02]} Nxd5 {[%emt 0:00:02]} 22. exd5 {[%emt 0:00:02]} Qxg5 {[%emt 0:00:02]} 23. dxc6 {[%emt 0:00:02]} Bxc6 {[%emt 0:00:02]} 24. Qxe5+ {[%emt 0:00:02]} Qxe5 {[%emt 0:00:02]} 25. Rxe5 {[%emt 0:00:02]} Kf6 {[%emt 0:00:02]} 26. Re3 {[%emt 0:00:02]} Rd8 {[%emt 0:00:02]} 27. Re2 {[%emt 0:00:02]} Rd1+ {[%emt 0:00:02]} 28. Kh2 Rd4 {[%emt 0:00:02]} 29. Ba6 {[%emt 0:00:04]} Ra4 {[%emt 0:00:02]} 30. Bc8 {[%emt 0:00:02]} Rxa2 {[%emt 0:00:02]} 31. b3 {[%emt 0:00:02]} a5 {[%emt 0:00:02]} 32. Rd2 {[%emt 0:00:02]} Ke7 {[%emt 0:00:02]} 33. Bg4 {[%emt 0:00:02]} a4 {[%emt 0:00:02]} 34. bxa4 {[%emt 0:00:02]} Bxa4 35. Re2+ {[%emt 0:00:02]} Kf6 {[%emt 0:00:04]} 36. c3 {[%emt 0:00:02]} Rxe2 {[%emt 0:00:02]} 37. Bxe2 {[%emt 0:00:02]} Ke5 {[%emt 0:00:02]} 38. Kg3 {[%emt 0:00:02]} Ke4 {[%emt 0:00:02]} 39. Bc4 {[%emt 0:00:02]} f6 {[%emt 0:00:02]} 40. Bg8 {[%emt 0:00:02]} h6 {[%emt 0:00:02]} 41. Bh7 {[%emt 0:00:02]} Kf5 {[%emt 0:00:02]} 42. Kf3 {[%emt 0:00:02]} Bc6+ {[%emt 0:00:02]} 43. Kg3 {[%emt 0:00:02]} b5 {[%emt 0:00:02]} 44. f3 {[%emt 0:00:02]} b4 45. cxb4 {[%emt 0:00:02]} cxb4 {[%emt 0:00:04]} 46. Bg8 {[%emt 0:00:02]} Ba4 {[%emt 0:00:02]} 47. Bc4 {[%emt 0:00:02]} Bc2 {[%emt 0:00:02]} 48. f4 {[%emt 0:00:02]} b3 {[%emt 0:00:02]} 49. Kf3 {[%emt 0:00:02]} g5 {[%emt 0:00:02]} 50. fxg5 {[%emt 0:00:02]} fxg5 {[%emt 0:00:02]} 51. Bg8 {[%emt 0:00:02]} Kf6 {[%emt 0:00:02]} 52. Kg4 {[%emt 0:00:02]} b2 {[%emt 0:00:02]} 53. Ba2 {[%emt 0:00:02]} b1=Q {[%emt 0:00:02]} 54. Bxb1 Bxb1 55. Kh5 {[%emt 0:00:04]} Kg7 {[%emt 0:00:04]} 56. h4 {[%emt 0:00:02]} gxh4 {[%emt 0:00:02]} 57. Kxh4 {[%emt 0:00:02]} Kg6 58. Kg4 {[%emt 0:00:02]} h5+ {[%emt 0:00:04]} 59. Kh4 {[%emt 0:00:02]} Kh6 {[%emt 0:00:02]} 60. g4 {[%emt 0:00:02]} hxg4 {[%emt 0:00:02]} 61. Kxg4 {[%emt 0:00:02]} Kh7 {[%emt 0:00:02]} 62. Kh5 Kg7 1/2-1/2

[Event "9th Bangabandhu Blitz Women 2021"]
[Site "Dhaka"]
[Date "2021.04.03"]
[Round "9.4"]
[White "Sabikun Nahar, Tonima"]
[Black "Talukder, Umme Taslima Protiva"]
[Result "0-1"]
[ECO "A22"]
[WhiteElo "1533"]
[BlackElo "1722"]
[Annotator "NA"]
[PlyCount "150"]
[EventDate "2021.04.02"]
[EventType "swiss"]
[EventCountry "BAN"]
[SourceTitle "playchess.com"]
[Source "ChessBase"]
[SourceQuality "1"]
[TimeControl "180+2"]

1. c4 {[%emt 0:03:02]} e5 {[%emt 0:03:02]} 2. Nc3 {[%emt 0:00:02]} d6 {[%emt 0:00:02]} 3. g3 {[%emt 0:00:02]} Nf6 {[%emt 0:00:02]} 4. Bg2 {[%emt 0:00:02]} Be7 {[%emt 0:00:02]} 5. e3 {[%emt 0:00:02]} c6 {[%emt 0:00:02]} 6. Nge2 {[%emt 0:00:02]} Be6 {[%emt 0:00:02]} 7. b3 {[%emt 0:00:02]} Nbd7 {[%emt 0:00:02]} 8. O-O {[%emt 0:00:02]} O-O {[%emt 0:00:02]} 9. h3 {[%emt 0:00:02]} Qc7 {[%emt 0:00:02]} 10. Bb2 {[%emt 0:00:02]} Nc5 {[%emt 0:00:02]} 11. d4 {[%emt 0:00:02]} Ncd7 {[%emt 0:00:02]} 12. Rc1 {[%emt 0:00:02]} Rfd8 {[%emt 0:00:02]} 13. d5 {[%emt 0:00:02]} Bf5 {[%emt 0:00:02]} 14. a3 {[%emt 0:00:02]} Nc5 {[%emt 0:00:02]} 15. e4 {[%emt 0:00:02]} Ncxe4 {[%emt 0:00:02]} 16. dxc6 {[%emt 0:00:02]} bxc6 {[%emt 0:00:02]} 17. Na4 {[%emt 0:00:02]} Ng5 {[%emt 0:00:02]} 18. h4 {[%emt 0:00:02]} Ne6 {[%emt 0:00:02]} 19. b4 {[%emt 0:00:02]} Rab8 {[%emt 0:00:02]} 20. Nac3 {[%emt 0:00:02]} Nf8 {[%emt 0:00:02]} 21. Qd2 {[%emt 0:00:02]} N6d7 {[%emt 0:00:02]} 22. f3 {[%emt 0:00:02]} Be6 {[%emt 0:00:02]} 23. Ne4 {[%emt 0:00:02]} f5 {[%emt 0:00:02]} 24. Ng5 {[%emt 0:00:02]} Nf6 {[%emt 0:00:02]} 25. Nxe6 {[%emt 0:00:02]} Nxe6 26. Rfd1 {[%emt 0:00:02]} Rd7 {[%emt 0:00:04]} 27. Qe1 {[%emt 0:00:02]} Rbd8 {[%emt 0:00:02]} 28. Qf2 Qb6 {[%emt 0:00:02]} 29. Kf1 {[%emt 0:00:04]} Qxf2+ {[%emt 0:00:02]} 30. Kxf2 {[%emt 0:00:02]} Bf8 {[%emt 0:00:02]} 31. Bh3 {[%emt 0:00:02]} g6 {[%emt 0:00:02]} 32. Nc3 {[%emt 0:00:02]} Nd4 {[%emt 0:00:02]} 33. Na4 {[%emt 0:00:02]} Ne6 {[%emt 0:00:02]} 34. Nc3 {[%emt 0:00:02]} Kf7 {[%emt 0:00:02]} 35. Ne2 Bg7 {[%emt 0:00:02]} 36. Nc3 {[%emt 0:00:04]} Bh6 {[%emt 0:00:02]} 37. Rb1 {[%emt 0:00:02]} Nd4 {[%emt 0:00:02]} 38. Bf1 {[%emt 0:00:02]} d5 {[%emt 0:00:02]} 39. c5 {[%emt 0:00:02]} Rb8 {[%emt 0:00:02]} 40. Na4 {[%emt 0:00:02]} Nb5 {[%emt 0:00:02]} 41. Nc3 {[%emt 0:00:02]} Nxc3 {[%emt 0:00:02]} 42. Bxc3 d4 43. Ba1 {[%emt 0:00:04]} Nd5 {[%emt 0:00:04]} 44. Bc4 {[%emt 0:00:02]} Kf6 {[%emt 0:00:02]} 45. Bxd5 {[%emt 0:00:02]} Rxd5 46. Bb2 {[%emt 0:00:02]} Be3+ {[%emt 0:00:04]} 47. Kg2 {[%emt 0:00:02]} e4 {[%emt 0:00:02]} 48. fxe4 {[%emt 0:00:02]} fxe4 {[%emt 0:00:02]} 49. Rf1+ {[%emt 0:00:02]} Ke5 {[%emt 0:00:02]} 50. Rfe1 {[%emt 0:00:02]} Kf5 {[%emt 0:00:02]} 51. Rf1+ Ke6 {[%emt 0:00:02]} 52. Rfe1 Rf8 {[%emt 0:00:02]} 53. Kh3 {[%emt 0:00:06]} h5 {[%emt 0:00:02]} 54. Rbd1 {[%emt 0:00:02]} Rf2 {[%emt 0:00:02]} 55. Bc1 {[%emt 0:00:02]} Kf5 {[%emt 0:00:02]} 56. Bxe3 {[%emt 0:00:02]} dxe3 {[%emt 0:00:02]} 57. Rxd5+ {[%emt 0:00:02]} cxd5 58. Rxe3 {[%emt 0:00:02]} Ke5 {[%emt 0:00:04]} 59. b5 {[%emt 0:00:02]} Rc2 {[%emt 0:00:02]} 60. c6 {[%emt 0:00:02]} Rc5 {[%emt 0:00:02]} 61. a4 {[%emt 0:00:02]} d4 {[%emt 0:00:02]} 62. Rb3 {[%emt 0:00:02]} e3 {[%emt 0:00:02]} 63. Kg2 {[%emt 0:00:02]} Ke4 64. a5 {[%emt 0:00:02]} d3 {[%emt 0:00:04]} 65. b6 {[%emt 0:00:02]} axb6 {[%emt 0:00:02]} 66. axb6 Rxc6 {[%emt 0:00:02]} 67. b7 d2 {[%emt 0:00:02]} 68. b8=Q {[%emt 0:00:06]} d1=Q {[%emt 0:00:02]} 69. Qe8+ {[%emt 0:00:02]} Kd5 {[%emt 0:00:02]} 70. Qf7+ Kc5 {[%emt 0:00:02]} 71. Rc3+ {[%emt 0:00:04]} Kb6 {[%emt 0:00:02]} 72. Qb3+ {[%emt 0:00:02]} Kc7 {[%emt 0:00:02]} 73. Qf7+ {[%emt 0:00:02]} Qd7 74. Qf4+ {[%emt 0:00:02]} Kc8 {[%emt 0:00:04]} 75. Rxc6+ {[%emt 0:00:02]} Qxc6+ {[%emt 0:00:02]} 0-1